lending/lending_fUSD_20250131
["ID","MTS","AMOUNT","RATE_DAILY","PERIOD"]
[351004513,1738282255033,-500.0,0.00019314,2]
[351004515,1738282255043,-500.0,0.00019314,2]
[351004517,1738282255053,-500.0,0.00019314,2]
[351004519,1738282255063,-500.0,0.00019314,2]
[351004522,1738282255073,-500.0,0.00019314,2]
[351004524,1738282255084,-500.0,0.00019314,2]
[351004526,1738282255098,-500.0,0.00019314,2]
[351004527,1738282255108,-500.0,0.00019314,2]
[351004530,1738282255119,-500.0,0.00019314,2]
[351004531,1738282255129,-500.0,0.00019314,2]
[351004533,1738282255139,-500.0,0.00019314,2]
[351004535,1738282255149,-500.0,0.00019314,2]
[351004538,1738282255159,-500.0,0.00019314,2]
[351004540,1738282255169,-500.0,0.00019314,2]
[351004542,1738282255179,-500.0,0.00019314,2]
[351004544,1738282255190,-500.0,0.00019314,2]
[351004546,1738282255199,-500.0,0.00019314,2]
[351004548,1738282255209,-500.0,0.00019314,2]
[351004550,1738282255218,-4971.64512738,0.00019315,2]
[351004552,1738282255227,-850.993016,0.00019315,3]
[351004554,1738282255237,-1616.204201,0.00019315,3]
[351004556,1738282255247,-500.0,0.00019315,3]
[351004558,1738282255256,-500.0,0.00019315,3]
[351004560,1738282255266,-934.69,0.00019315,3]
[351004562,1738282255276,-1224.98,0.00019315,3]
[351004564,1738282255285,-500.0,0.00019315,3]
[351004566,1738282255296,-500.0,0.00019315,3]
[351004568,1738282255306,-730.27,0.00019315,3]
[351004570,1738282255317,-500.0,0.00019315,3]
[351004572,1738282255326,-1235.83,0.00019315,3]
[351004574,1738282255340,-292.85424234,0.00019315,3]
[351004576,1738282255350,-1029.32,0.00019315,3]
[351004578,1738282255362,-500.0,0.00019315,3]
[351004580,1738282255372,-500.0,0.00019315,3]
[351004581,1738282255385,-500.0,0.00019315,3]
[351004582,1738282255395,-500.0,0.00019315,3]
[351004583,1738282255407,-986.18,0.00019315,3]
[351004584,1738282255418,-500.0,0.00019315,3]
[351004585,1738282255427,-500.0,0.00019315,3]
[351004586,1738282255438,-766.7,0.00019315,3]
[351004587,1738282255449,-778.04,0.00019315,3]
[351004588,1738282255459,-500.0,0.00019315,3]
[351004590,1738282255469,-500.0,0.00019315,3]
[351004592,1738282255479,-500.0,0.00019315,3]
[351004594,1738282255490,-500.0,0.00019315,3]
[351004596,1738282255499,-505.78549204,0.00019315,3]
[351004598,1738282255510,-500.0,0.00019315,3]
[351004600,1738282255521,-500.0,0.00019315,3]
[351004602,1738282255531,-872.39,0.00019315,3]
[351004604,1738282255541,-500.0,0.00019315,3]
[351004606,1738282255551,-500.0,0.00019315,3]
[351004608,1738282255561,-500.0,0.00019315,3]
[351004610,1738282255571,-1043.16,0.00019315,3]
[351004612,1738282255581,-652.48,0.00019315,3]
[351004614,1738282255595,-500.0,0.00019315,3]
[351004616,1738282255605,-1066.89,0.00019315,3]
[351004618,1738282255615,-643.42363528,0.00019315,3]
[351004620,1738282255624,-500.0,0.00019315,3]
[351004622,1738282255634,-500.0,0.00019315,3]
[351004624,1738282255643,-615.14,0.00019315,3]
[351004626,1738282255653,-500.0,0.00019315,3]
[351004628,1738282255662,-500.0,0.00019315,3]
[351004630,1738282255676,-640.21,0.00019315,3]
[351004632,1738282255686,-659.89,0.00019315,3]
[351004634,1738282255696,-530.34,0.00019315,3]
[351004636,1738282255709,-500.0,0.00019315,3]
[351004638,1738282255726,-591.37046882,0.00019315,3]
[351004640,1738282255738,-500.0,0.00019315,3]
[351004642,1738282255748,-500.0,0.00019315,3]
[351004644,1738282255758,-500.0,0.00019315,3]
[351004646,1738282255767,-500.0,0.00019315,3]
[351004648,1738282255777,-504.75196654,0.00019315,3]
[351004650,1738282255787,-500.0,0.00019315,3]
[351004652,1738282255796,-544.17,0.00019315,3]
[351004654,1738282255806,-1346.25,0.00019315,3]
[351004656,1738282255815,-500.0,0.00019315,3]
[351004658,1738282255825,-500.0,0.00019315,3]
[351004660,1738282255837,-500.0,0.00019315,3]
[351004662,1738282255847,-500.0,0.00019315,3]
[351004664,1738282255857,-500.0,0.00019315,3]
[351004666,1738282255866,-500.0,0.00019315,3]
[351004668,1738282255876,-500.0,0.00019315,3]
[351004670,1738282255886,-500.0,0.00019315,3]
[351004672,1738282255896,-500.0,0.00019315,3]
[351004674,1738282255905,-500.0,0.00019315,3]
[351004676,1738282255916,-1027.38,0.00019315,3]
[351004679,1738282255926,-500.0,0.00019315,3]
[351004680,1738282255936,-1185.73,0.00019315,3]
[351004683,1738282255946,-500.0,0.00019315,3]
[351004685,1738282255956,-500.0,0.00019315,3]
[351004687,1738282255967,-500.0,0.00019315,3]
[351004689,1738282255976,-500.0,0.00019315,3]
[351004691,1738282255986,-550.01,0.00019315,3]
[351004693,1738282255996,-1314.59,0.00019315,3]
[351004695,1738282256006,-716.27,0.00019315,3]
[351004697,1738282256016,-500.0,0.00019315,3]
[351004699,1738282256029,-663.68,0.00019315,3]
[351004701,1738282256040,-500.0,0.00019315,3]
[351004703,1738282256051,-500.0,0.00019315,3]
[351004705,1738282256061,-500.0,0.00019315,3]
[351004707,1738282256071,-500.0,0.00019315,3]
[351004709,1738282256081,-500.0,0.00019315,3]
[351004711,1738282256092,-500.0,0.00019315,3]
[351004713,1738282256102,-500.0,0.00019315,3]
[351004715,1738282256111,-500.0,0.00019315,3]
[351004717,1738282256121,-500.0,0.00019315,3]
[351004719,1738282256130,-509.29,0.00019315,3]
[351004721,1738282256141,-258.36952369,0.00019315,3]
[351004723,1738282256151,-686.25,0.00019315,3]
[351004725,1738282256161,-500.0,0.00019315,3]
[351004727,1738282256171,-547.73,0.00019315,3]
[351004729,1738282256181,-962.72,0.00019315,3]
[351004731,1738282256191,-1785.725684,0.00019315,3]
[351004733,1738282256200,-500.0,0.00019315,3]
[351004735,1738282256210,-747.92,0.00019315,3]
[351004736,1738282256220,-1163.4,0.00019315,3]
[351004738,1738282256230,-500.0,0.00019315,3]
[351004740,1738282256240,-1727.29,0.00019315,3]
[351004743,1738282256250,-500.0,0.00019315,3]
[351004745,1738282256260,-2570.17,0.00019315,3]
[351004747,1738282256271,-1209.23,0.00019315,3]
[351004749,1738282256280,-500.0,0.00019315,3]
[351004751,1738282256289,-2025.48,0.00019315,3]
[351004753,1738282256298,-801.2,0.00019315,3]
[351004755,1738282256309,-500.0,0.00019315,3]
[351004757,1738282256319,-500.0,0.00019315,3]
[351004759,1738282256329,-376.23199,0.00019315,3]
[351004761,1738282256341,-500.0,0.00019315,3]
[351004763,1738282256350,-500.0,0.00019315,3]
[351004765,1738282256360,-404.46649525,0.00019315,3]
[351004767,1738282256369,-500.0,0.00019315,3]
[351004769,1738282256379,-511.26,0.00019315,3]
[351004771,1738282256389,-500.0,0.00019315,3]
[351004773,1738282256398,-2653.36,0.00019315,3]
[351004775,1738282256408,-1001.16,0.00019315,3]
[351004777,1738282256417,-1429.68156,0.00019315,3]
[351004779,1738282256427,-567.38,0.00019315,3]
[351004781,1738282256436,-254.74,0.00019315,3]
[351004783,1738282256446,-500.0,0.00019315,3]
[351004785,1738282256455,-742.43,0.00019315,3]
[351004787,1738282256465,-2157.54,0.00019315,3]
[351004789,1738282256475,-500.0,0.00019315,3]
[351004791,1738282256486,-500.0,0.00019315,3]
[351004793,1738282256495,-500.0,0.00019315,3]
[351004795,1738282256504,-500.0,0.00019315,3]
[351004797,1738282256513,-500.0,0.00019315,3]
[351004799,1738282256523,-2159.3,0.00019315,3]
[351004801,1738282256533,-1324.84,0.00019315,3]
[351004803,1738282256543,-500.0,0.00019315,3]
[351004806,1738282256554,-500.0,0.00019315,3]
[351004808,1738282256564,-700.53,0.00019315,3]
[351004810,1738282256574,-500.0,0.00019315,3]
[351004812,1738282256583,-500.0,0.00019315,3]
[351004814,1738282256594,-500.0,0.00019315,3]
[351004816,1738282256604,-503.18,0.00019315,3]
[351004818,1738282256614,-653.35,0.00019315,3]
[351004820,1738282256623,-500.0,0.00019315,3]
[351004822,1738282256633,-500.0,0.00019315,3]
[351004824,1738282256642,-500.0,0.00019315,3]
[351004826,1738282256652,-500.0,0.00019315,3]
[351004828,1738282256664,-500.0,0.00019315,3]
[351004830,1738282256675,-500.0,0.00019315,3]
[351004832,1738282256689,-1468.55,0.00019315,3]
[351004834,1738282256699,-500.0,0.00019315,2]
[351004836,1738282256709,-696.41,0.00019315,3]
[351004838,1738282256719,-860.62,0.00019315,3]
[351004840,1738282256729,-665.07,0.00019315,3]
[351004842,1738282256739,-500.0,0.00019315,3]
[351004844,1738282256748,-500.0,0.00019315,3]
[351004846,1738282256759,-500.0,0.00019315,3]
[351004848,1738282256769,-2209.06,0.00019315,3]
[351004850,1738282256779,-1267.03,0.00019315,3]
[351004852,1738282256789,-507.66,0.00019315,3]
[351004854,1738282256798,-500.0,0.00019315,3]
[351004856,1738282256808,-1049.05,0.00019315,3]
[351004858,1738282256817,-500.0,0.00019315,3]
[351004861,1738282256829,-1569.67,0.00019315,3]
[351004863,1738282256840,-964.9,0.00019315,3]
[351004865,1738282256850,-1491.92,0.00019315,3]
[351004867,1738282256860,-500.0,0.00019315,3]
[351004869,1738282256870,-500.0,0.00019315,3]
[351004871,1738282256880,-500.0,0.00019315,3]
[351004873,1738282256889,-500.0,0.00019315,3]
[351004875,1738282256899,-2385.82,0.00019315,3]
[351004877,1738282256909,-500.0,0.00019315,3]
[351004879,1738282256920,-1996.03,0.00019315,3]
[351004881,1738282256931,-500.0,0.00019315,3]
[351004883,1738282256941,-500.0,0.00019315,3]
[351004885,1738282256951,-500.0,0.00019315,3]
[351004887,1738282256962,-500.0,0.00019315,3]
[351004889,1738282256972,-799.92,0.00019315,3]
[351004891,1738282256982,-1931.5,0.00019315,3]
[351004893,1738282256993,-500.0,0.00019315,3]
[351004896,1738282257003,-714.4,0.00019315,3]
[351004898,1738282257013,-1103.45,0.00019315,3]
[351004900,1738282257022,-500.0,0.00019315,3]
[351004902,1738282257032,-500.0,0.00019315,3]
[351004904,1738282257042,-500.0,0.00019315,3]
[351004906,1738282257053,-646.90398569,0.00019315,3]
[351004908,1738282257063,-500.0,0.00019315,3]
[351004910,1738282257073,-695.08,0.00019315,3]
[351004912,1738282257083,-1303.61,0.00019315,3]
[351004914,1738282257096,-500.0,0.00019315,3]
[351004916,1738282257105,-500.0,0.00019315,3]
[351004918,1738282257115,-500.0,0.00019315,3]
[351004920,1738282257125,-500.0,0.00019315,3]
[351004922,1738282257135,-500.0,0.00019315,3]
[351004924,1738282257145,-811.08,0.00019315,3]
[351004926,1738282257156,-577.94458256,0.00019315,3]
[351004927,1738282257166,-500.0,0.00019315,3]
[351004928,1738282257177,-500.0,0.00019315,3]
[351004929,1738282257187,-1539.27,0.00019315,3]
[351004930,1738282257199,-571.71,0.00019315,3]
[351004931,1738282257211,-500.0,0.00019315,3]
[351004932,1738282257224,-951.99,0.00019315,3]
[351004934,1738282257236,-526.55343196,0.00019315,3]
[351004936,1738282257247,-1128.99,0.00019315,3]
[351004959,1738282257460,-500.0,0.00019315,3]
[351004961,1738282257470,-963.67,0.00019315,3]
[351004963,1738282257479,-3077.38,0.00019315,3]
[351004965,1738282257489,-834.8,0.00019315,3]
[351004967,1738282257499,-500.0,0.00019315,3]
[351004969,1738282257508,-1093.45,0.00019315,3]
[351004971,1738282257517,-500.0,0.00019315,3]
[351004973,1738282257527,-913.95,0.00019315,3]
[351004975,1738282257537,-500.0,0.00019315,3]
[351004977,1738282257547,-500.0,0.00019315,3]
[351004979,1738282257556,-561.52,0.00019315,3]
[351004981,1738282257565,-500.0,0.00019315,3]
[351004983,1738282257575,-502.18167521,0.00019315,3]
[351004985,1738282257585,-500.0,0.00019315,3]
[351004987,1738282257595,-500.0,0.00019315,3]
[351004989,1738282257605,-905.8,0.00019315,3]
[351004991,1738282257614,-500.0,0.00019315,3]
[351004993,1738282257624,-524.08062533,0.00019315,3]
[351004995,1738282257633,-1054.93,0.00019315,3]
[351004997,1738282257643,-500.0,0.00019315,3]
[351004999,1738282257653,-1221.47,0.00019315,3]
[351005001,1738282257663,-500.0,0.00019315,3]
[351005003,1738282257674,-654.68,0.00019315,3]
[351005005,1738282257687,-1133.01,0.00019315,3]
[351005007,1738282257697,-1569.31,0.00019315,3]
[351005009,1738282257707,-500.0,0.00019315,3]
[351005011,1738282257717,-500.0,0.00019315,3]
[351005013,1738282257727,-849.04,0.00019315,3]
[351005015,1738282257736,-500.0,0.00019315,3]
[351005017,1738282257745,-500.0,0.00019315,3]
[351005019,1738282257755,-500.0,0.00019315,3]
[351005021,1738282257766,-500.0,0.00019315,3]
[351005023,1738282257776,-837.24,0.00019315,3]
[351005025,1738282257785,-500.0,0.00019315,3]
[351005027,1738282257795,-500.0,0.00019315,3]
[351005029,1738282257804,-274.89920895,0.00019315,3]
[351005031,1738282257814,-500.0,0.00019315,3]
[351005033,1738282257824,-500.0,0.00019315,3]
[351005035,1738282257833,-1872.35,0.00019315,3]
[351005037,1738282257844,-500.0,0.00019315,3]
[351005040,1738282257854,-583.25,0.00019315,3]
[351005042,1738282257864,-517.98,0.00019315,3]
[351005044,1738282257875,-1511.84,0.00019315,3]
[351005046,1738282257886,-500.0,0.00019315,3]
[351005048,1738282257896,-1005.51,0.00019315,3]
[351005050,1738282257906,-500.0,0.00019315,3]
[351005052,1738282257915,-1127.03,0.00019315,3]
[351005054,1738282257925,-1600.12,0.00019315,3]
[351005056,1738282257935,-500.0,0.00019315,3]
[351005058,1738282257945,-632.61,0.00019315,3]
[351005060,1738282257954,-290.23626438,0.00019315,3]
[351005062,1738282257964,-872.69,0.00019315,3]
[351005064,1738282257974,-2321.22,0.00019315,3]
[351005066,1738282257984,-1482.84,0.00019315,3]
[351005068,1738282257994,-500.0,0.00019315,3]
[351005070,1738282258003,-704.47,0.00019315,3]
[351005072,1738282258013,-2747.53,0.00019315,3]
[351005074,1738282258023,-1100.63,0.00019315,3]
[351005076,1738282258032,-571.97,0.00019315,3]
[351005078,1738282258042,-359.85914578,0.00019315,3]
[351005080,1738282258052,-500.0,0.00019315,3]
[351005082,1738282258062,-500.0,0.00019315,3]
[351005084,1738282258072,-500.0,0.00019315,3]
[351005086,1738282258081,-1054.06,0.00019315,3]
[351005088,1738282258093,-502.54,0.00019315,3]
[351005090,1738282258102,-500.0,0.00019315,3]
[351005093,1738282258112,-949.17,0.00019315,3]
[351005095,1738282258123,-500.0,0.00019315,3]
[351005097,1738282258133,-632.21,0.00019315,3]
[351005099,1738282258143,-740.74,0.00019315,3]
[351005101,1738282258153,-1506.63,0.00019315,3]
[351005103,1738282258163,-500.0,0.00019315,3]
[351005105,1738282258174,-1123.33,0.00019315,3]
[351005107,1738282258184,-959.27,0.00019315,3]
[351005109,1738282258194,-510.67,0.00019315,3]
[351005111,1738282258204,-541.29607591,0.00019315,3]
[351005113,1738282258216,-500.0,0.00019315,3]
[351005115,1738282258225,-959.07,0.00019315,3]
[351005117,1738282258235,-2274.95,0.00019315,3]
[351005119,1738282258245,-934.51,0.00019315,3]
[351005121,1738282258256,-644.54910233,0.00019315,3]
[351005123,1738282258266,-500.0,0.00019315,3]
[351005125,1738282258276,-500.0,0.00019315,3]
[351005127,1738282258286,-584.56,0.00019315,3]
[351005130,1738282258296,-798.6,0.00019315,3]
[351005132,1738282258306,-534.79,0.00019315,3]
[351005134,1738282258316,-500.0,0.00019315,3]
[351005136,1738282258325,-469.25194865,0.00019315,3]
[351005138,1738282258335,-554.15,0.00019315,3]
[351005140,1738282258347,-500.0,0.00019315,3]
[351005142,1738282258357,-500.0,0.00019315,3]
[351005144,1738282258366,-1096.25,0.00019315,3]
[351005146,1738282258376,-500.0,0.00019315,3]
[351005148,1738282258387,-500.0,0.00019315,3]
[351005150,1738282258396,-500.0,0.00019315,3]
[351005152,1738282258405,-1672.85,0.00019315,3]
[351005154,1738282258415,-500.0,0.00019315,3]
[351005156,1738282258425,-500.0,0.00019315,3]
[351005158,1738282258434,-500.0,0.00019315,3]
[351005160,1738282258443,-1656.5,0.00019315,3]
[351005162,1738282258453,-653.46,0.00019315,3]
[351005164,1738282258462,-500.0,0.00019315,3]
[351005166,1738282258471,-500.0,0.00019315,3]
[351005168,1738282258480,-500.0,0.00019315,3]
[351005170,1738282258490,-538.56,0.00019315,3]
[351005172,1738282258499,-1008.68,0.00019315,3]
[351005174,1738282258509,-500.0,0.00019315,3]
[351005176,1738282258519,-500.0,0.00019315,3]
[351005178,1738282258529,-500.0,0.00019315,3]
[351005180,1738282258538,-500.0,0.00019315,3]
[351005182,1738282258548,-500.0,0.00019315,3]
[351005184,1738282258558,-500.0,0.00019315,3]
[351005186,1738282258567,-211.9951241,0.00019315,3]
[351005188,1738282258576,-539.56,0.00019315,3]
[351005190,1738282258586,-500.0,0.00019315,3]
[351005192,1738282258596,-511.16,0.00019315,3]
[351005194,1738282258606,-500.0,0.00019315,3]
[351005196,1738282258615,-896.35,0.00019315,3]
[351005198,1738282258625,-1398.83,0.00019315,3]
[351005200,1738282258635,-1012.74,0.00019315,3]
[351005202,1738282258644,-1843.2,0.00019315,3]
[351005204,1738282258655,-662.04,0.00019315,3]
[351005206,1738282258664,-500.0,0.00019315,3]
[351005208,1738282258675,-500.0,0.00019315,3]
[351005210,1738282258687,-638.46,0.00019315,3]
[351005212,1738282258697,-500.0,0.00019315,3]
[351005214,1738282258707,-556.6,0.00019315,3]
[351005216,1738282258719,-500.0,0.00019315,3]
[351005218,1738282258728,-822.38,0.00019315,3]
[351005220,1738282258738,-782.86,0.00019315,3]
[351005222,1738282258747,-928.31,0.00019315,3]
[351005224,1738282258758,-500.0,0.00019315,3]
[351005226,1738282258767,-1846.85,0.00019315,3]
[351005227,1738282258776,-500.0,0.00019315,3]
[351005228,1738282258786,-564.2,0.00019315,3]
[351005229,1738282258795,-1509.54,0.00019315,3]
[351005230,1738282258804,-400.84165512,0.00019315,3]
[351005231,1738282258813,-1427.97,0.00019315,3]
[351005232,1738282258822,-2352.35,0.00019315,3]
[351005233,1738282258832,-500.0,0.00019315,3]
[351005234,1738282258842,-150.0,0.00019315,3]
[351005237,1738282258852,-1138.48,0.00019315,3]
[351005239,1738282258862,-1066.51,0.00019315,3]
[351005241,1738282258871,-2256.51,0.00019315,3]
[351005243,1738282258881,-574.07389957,0.00019315,3]
[351005245,1738282258891,-500.0,0.00019315,3]
[351005247,1738282258900,-500.0,0.00019315,3]
[351005249,1738282258910,-583.99,0.00019315,3]
[351005251,1738282258919,-500.0,0.00019315,3]
[351005253,1738282258928,-597.51,0.00019315,3]
[351005255,1738282258938,-1590.7,0.00019315,3]
[351005257,1738282258947,-563.68,0.00019315,3]
[351005259,1738282258958,-622.97,0.00019315,3]
[351005261,1738282258967,-1081.95,0.00019315,3]
[351005263,1738282258976,-2884.53,0.00019315,3]
[351005265,1738282258988,-500.0,0.00019315,3]
[351005267,1738282258997,-500.0,0.00019315,3]
[351005269,1738282259007,-500.0,0.00019315,3]
[351005271,1738282259016,-1416.91,0.00019315,3]
[351005273,1738282259025,-1371.49,0.00019315,3]
[351005275,1738282259035,-1073.89,0.00019315,3]
[351005277,1738282259044,-500.0,0.00019315,3]
[351005279,1738282259054,-842.43,0.00019315,3]
[351005280,1738282259070,-500.0,0.00019315,3]
[351005282,1738282259080,-1635.29,0.00019315,3]
[351005284,1738282259090,-740.18,0.00019315,3]
[351005286,1738282259099,-576.34,0.00019315,3]
[351005287,1738282259109,-2283.25,0.00019315,3]
[351005289,1738282259118,-500.0,0.00019315,3]
[351005291,1738282259128,-500.0,0.00019315,3]
[351005293,1738282259138,-959.67,0.00019315,3]
[351005295,1738282259148,-500.0,0.00019315,3]
[351005297,1738282259158,-2771.83,0.00019315,3]
[351005299,1738282259167,-500.0,0.00019315,3]
[351005301,1738282259177,-897.59,0.00019315,3]
[351005303,1738282259187,-1920.8,0.00019315,3]
[351005305,1738282259196,-500.0,0.00019315,3]
[351005307,1738282259205,-500.0,0.00019315,3]
[351005309,1738282259215,-500.0,0.00019315,3]
[351005311,1738282259224,-1414.22,0.00019315,3]
[351005313,1738282259234,-1975.06,0.00019315,3]
[351005315,1738282259243,-500.0,0.00019315,3]
[351005317,1738282259253,-500.0,0.00019315,3]
[351005319,1738282259263,-1901.04,0.00019315,3]
[351005321,1738282259273,-670.17,0.00019315,3]
[351005323,1738282259283,-754.88,0.00019315,3]
[351005325,1738282259293,-250.80157353,0.00019315,3]
[351005327,1738282259302,-518.57241055,0.00019315,3]
[351005329,1738282259311,-500.0,0.00019315,3]
[351005331,1738282259322,-500.0,0.00019315,3]
[351005333,1738282259331,-2169.06,0.00019315,3]
[351005335,1738282259341,-500.0,0.00019315,3]
[351005337,1738282259351,-1026.29,0.00019315,3]
[351005339,1738282259360,-1411.1,0.00019315,3]
[351005340,1738282259370,-500.0,0.00019315,3]
[351005342,1738282259379,-500.0,0.00019315,3]
[351005344,1738282259389,-500.0,0.00019315,3]
[351005346,1738282259399,-2435.7,0.00019315,3]
[351005348,1738282259408,-500.0,0.00019315,3]
[351005350,1738282259417,-500.0,0.00019315,3]
[351005352,1738282259427,-540.47742849,0.00019315,3]
[351005354,1738282259436,-500.0,0.00019315,3]
[351005356,1738282259447,-500.0,0.00019315,3]
[351005358,1738282259456,-500.0,0.00019315,3]
[351005360,1738282259466,-1355.55,0.00019315,3]
[351005362,1738282259476,-500.0,0.00019315,3]
[351005364,1738282259487,-2403.5,0.00019315,3]
[351005366,1738282259497,-766.18,0.00019315,3]
[351005368,1738282259506,-2601.33,0.00019315,3]
[351005370,1738282259515,-1420.81,0.00019315,3]
[351005372,1738282259525,-1929.28,0.00019315,3]
[351005374,1738282259535,-500.0,0.00019315,3]
[351005376,1738282259544,-500.0,0.00019315,3]
[351005378,1738282259554,-500.0,0.00019315,3]
[351005380,1738282259565,-1742.12,0.00019315,3]
[351005382,1738282259574,-500.0,0.00019315,3]
[351005384,1738282259583,-937.29,0.00019315,3]
[351005386,1738282259593,-500.0,0.00019315,3]
[351005388,1738282259603,-500.0,0.00019315,3]
[351005390,1738282259612,-500.0,0.00019315,3]
[351005392,1738282259622,-2173.92,0.00019315,3]
[351005394,1738282259631,-4900.31,0.00019315,3]
[351005396,1738282259640,-500.0,0.00019315,3]
[351005398,1738282259649,-500.0,0.00019315,3]
[351005400,1738282259659,-983.31,0.00019315,3]
[351005402,1738282259668,-1549.81,0.00019315,3]
[351005404,1738282259680,-1687.49,0.00019315,3]
[351005406,1738282259690,-1981.35,0.00019315,3]
[351005408,1738282259699,-500.0,0.00019315,3]
[351005410,1738282259708,-509.98219789,0.00019315,3]
[351005412,1738282259718,-3405.55,0.00019315,3]
[351005414,1738282259728,-500.0,0.00019315,3]
[351005416,1738282259737,-500.0,0.00019315,3]
[351005418,1738282259746,-1874.23,0.00019315,3]
[351005420,1738282259759,-500.0,0.00019315,3]
[351005422,1738282259769,-500.0,0.00019315,3]
[351005424,1738282259778,-1605.69,0.00019315,3]
[351005426,1738282259791,-4106.66,0.00019315,3]
[351005429,1738282259802,-2035.27,0.00019315,3]
[351005430,1738282259812,-1212.59,0.00019315,3]
[351005432,1738282259821,-2830.05,0.00019315,3]
[351005434,1738282259831,-500.0,0.00019315,3]
[351005436,1738282259841,-500.0,0.00019315,3]
[351005438,1738282259850,-500.0,0.00019315,3]
[351005440,1738282259860,-902.88,0.00019315,3]
[351005442,1738282259869,-500.0,0.00019315,3]
[351005444,1738282259879,-516.71,0.00019315,3]
[351005455,1738282259965,-2210.37,0.00019315,3]
[351005457,1738282259975,-500.0,0.00019315,3]
[351005459,1738282259985,-2076.87,0.00019315,3]
[351005460,1738282259994,-500.0,0.00019315,3]
[351005462,1738282260003,-2234.81,0.00019315,3]
[351005464,1738282260013,-1622.6,0.00019315,3]
[351005466,1738282260022,-10220.82,0.00019315,3]
[351005468,1738282260031,-531.17,0.00019315,3]
[351005470,1738282260040,-863.77,0.00019315,3]
[351005472,1738282260050,-500.0,0.00019315,3]
[351005474,1738282260061,-500.0,0.00019315,3]
[351005476,1738282260071,-2883.15,0.00019315,3]
[351005478,1738282260081,-613.63105791,0.00019315,3]
[351005481,1738282260092,-941.04,0.00019315,3]
[351005483,1738282260102,-500.0,0.00019315,3]
[351005485,1738282260111,-500.0,0.00019315,3]
[351005487,1738282260121,-823.04,0.00019315,3]
[351005489,1738282260131,-3608.15,0.00019315,3]
[351005491,1738282260140,-393.66514969,0.00019315,3]
[351005492,1738282260150,-3099.8,0.00019315,3]
[351005494,1738282260159,-1764.41,0.00019315,3]
[351005496,1738282260168,-500.0,0.00019315,3]
[351005498,1738282260178,-4082.94,0.00019315,3]
[351005500,1738282260187,-963.08,0.00019315,3]
[351005502,1738282260196,-1203.07,0.00019315,3]
[351005504,1738282260206,-500.0,0.00019315,3]
[351005506,1738282260216,-1247.05,0.00019315,3]
[351005508,1738282260225,-500.0,0.00019315,3]
[351005510,1738282260235,-500.0,0.00019315,3]
[351005512,1738282260244,-1334.12,0.00019315,3]
[351005514,1738282260253,-2928.0,0.00019315,3]
[351005516,1738282260263,-1032.12,0.00019315,3]
[351005518,1738282260273,-3130.5,0.00019315,3]
[351005520,1738282260282,-2333.96,0.00019315,3]
[351005521,1738282260293,-500.0,0.00019315,3]
[351005522,1738282260302,-500.0,0.00019315,3]